fUSD/lending_fUSD_20240113
["ID","MTS","AMOUNT","RATE_DAILY","PERIOD"]
[311437639,1705104204115,1645.18680225,0.00021982,2]
[311437640,1705104206118,397.0,0.0002277,2]
[311437641,1705104210044,418.31655925,0.00021982,2]
[311437642,1705104334894,180.04805297,0.00020608,30]
[311437665,1705104603198,183.71214609,0.000227,2]
[311437670,1705104631939,-1271.45237136,0.000228,2]
[311437672,1705104631951,-1236.19436291,0.000228,2]
[311437673,1705104631963,-294.6387564,0.000228,2]
[311437674,1705104631974,-61.44990933,0.000228,2]
[311437675,1705104631985,-162.4398926,0.000228,2]
[311437676,1705104631995,-187.79335378,0.00022899,2]
[311437677,1705104632021,-112.20664622,0.00022899,2]
[311437678,1705104632030,-1154.39335378,0.000229,2]
[311437679,1705104632041,-1314.70500011,0.000229,2]
[311437680,1705104632053,-37311.11294611,0.000229,2]
[311437681,1705104632062,-20165.54381739,0.000229,2]
[311437682,1705104632074,-499.99,0.000229,2]
[311437683,1705104632086,-4290.81564,0.000229,2]
[311437684,1705104632396,-14420.33064261,0.000229,2]
[311437685,1705104632413,-250.0,0.000229,2]
[311437686,1705104632422,-55555.0,0.000229,2]
[311437687,1705104632431,-9059.61567379,0.000229,2]
[311437688,1705104632440,-162.4398926,0.000229,2]
[311437689,1705104632449,-1088.1761736,0.000229,2]
[311437690,1705104632458,-1677.23717671,0.000229,2]
[311437691,1705104632471,-3404.12829825,0.000229,2]
[311437692,1705104632481,-5033.30032435,0.000229,2]
[311437693,1705104632491,-339.35574836,0.000229,2]
[311437694,1705104632501,-20123.0,0.00022986,2]
[311437695,1705104632511,-2606.18162672,0.00022999,2]
[311437696,1705104632521,-155.0,0.00022999,2]
[311437697,1705104632531,-150.0,0.00022999,2]
[311437698,1705104632541,-150.0,0.00022999,2]
[311437699,1705104632550,-150.0,0.00022999,2]
[311437700,1705104632560,-150.0,0.00022999,2]
[311437701,1705104632569,-150.0,0.00022999,2]
[311437702,1705104632578,-150.0,0.00022999,2]
[311437703,1705104632588,-97262.34094478,0.00023,2]
[311437704,1705104632599,-834.43129935,0.00023,2]
[311437705,1705104632624,-17207.44354265,0.00023,2]
[311437706,1705104632636,-327.01287504,0.00023,2]
[311437707,1705104632660,-7804.81963993,0.00023,2]
[311437708,1705104632671,-1043.13400004,0.00023,2]
[311437709,1705104632706,-46156.23972666,0.00023,2]
[311437714,1705104638008,-992.56628994,0.00023,2]
[311437715,1705104638021,-2047.55682602,0.00023,2]
[311437716,1705104638033,-1576.350974,0.00023,2]
[311437717,1705104638096,-421.78588728,0.00023,2]
[311437718,1705104638108,-383.38250572,0.00023,2]
[311437719,1705104638120,-664.7155546,0.00023,2]
[311437720,1705104638132,-476.01994707,0.00023,2]
[311437721,1705104638147,-452.64,0.00023,2]
[311437722,1705104638159,-951.26132272,0.00023,2]
[311437723,1705104638170,-455.23866117,0.00023,2]
[311437724,1705104638190,-493.3,0.00023,2]
[311437725,1705104638201,-100965.34654303,0.00023,2]
[311437726,1705104638253,-368.49053833,0.00023,2]
[311437727,1705104638462,-214028.49281495,0.00023,2]
[311437728,1705104638474,-2149.29715,0.00023,2]
[311437729,1705104638521,-946.39860913,0.00023,2]
[311437760,1705104640479,-41544.60533912,0.00023,2]
[311437768,1705104640548,-941.736,0.00023,2]
[311437775,1705104640604,-409.94151294,0.00023,2]
[311437778,1705104640615,-581.27211525,0.00023,2]
[311437780,1705104640629,-5015.62355316,0.00023,2]
[311437789,1705104640700,-4279.62601539,0.00023,2]
[311437827,1705104642909,-705.37,0.000228,2]
[311437829,1705104642918,-5312.876,0.00023,2]
[311437846,1705104643041,-618.78915753,0.00023,2]
[311437856,1705104643122,-10245.36260033,0.00023,2]
[311437858,1705104643136,-494.49013867,0.00023,2]
[311437896,1705104646167,-770.43149471,0.00023,2]
[311437897,1705104646219,-254799.89711914,0.00023,2]
[311437898,1705104724590,206.0,0.00022784,2]
[311437899,1705104930859,5800.0,0.00018695,2]
[311437900,1705105072087,200.0,0.00018602,30]
[311437901,1705105072186,296.9224191,0.00018602,30]
[311437902,1705105072219,200.0,0.00018602,30]
[311437904,1705105281862,1511.1128972,0.00022666,2]
[311437905,1705105459672,1098.64522824,0.00022666,2]
[311437906,1705105471393,208.30280811,0.00022666,2]
[311437907,1705105472809,169.34626625,0.00022768,2]
[311437908,1705105479447,3299.90988459,0.00022666,2]
[311437909,1705105531858,1454.63646772,0.00022411,2]
[311437910,1705105532166,1454.63646772,0.00022625,2]
[311437911,1705105532310,1075.02598251,0.00022354,2]
[311437912,1705105532616,1075.02598251,0.0002268,2]
[311437913,1705105698521,300.09,0.00021173,2]
[311437914,1705105729601,6988.06244958,0.00022798,2]
[311437932,1705105808473,500.0,0.00022319,2]
[311437933,1705105811127,151.85,0.00022542,2]
[311437936,1705105832138,-1046.54380072,0.00022799,2]
[311437937,1705105832147,-271.8415,0.000228,2]
[311437938,1705105832157,-151.85,0.00022845,2]
[311437939,1705105832167,-300.0,0.00022897,2]
[311437940,1705105832177,-162.07655107,0.00022898,2]
[311437941,1705105832187,-724.02279719,0.00022898,2]
[311437942,1705105832197,-239.23240074,0.00022898,2]
[311437943,1705105832207,-1000.0,0.00022898,2]
[311437944,1705105832218,-2131.4519,0.00022898,2]
[311437945,1705105832228,-157.29983905,0.00022898,2]
[311437946,1705105832237,-157.29983902,0.00022899,2]
[311437947,1705105832246,-52116.77975657,0.00022899,2]
[311437948,1705105832257,-252.7154311,0.00022899,2]
[311437949,1705105832273,-384.38357155,0.00022899,2]
[311437950,1705105832301,-13401.95713698,0.00022899,2]
[311437951,1705105832313,-10740.0,0.00022899,2]
[311437952,1705105832348,-605.76148216,0.00022899,2]
[311437953,1705105832360,-944.30058148,0.00022899,2]
[311437961,1705105838162,-98961.7080135,0.00022899,2]
[311437962,1705105838172,-335.43991817,0.00022899,2]
[311437963,1705105838182,-157.29983902,0.00022899,2]
[311437964,1705105838192,-157.29983902,0.000229,2]
[311437965,1705105838201,-705.37,0.000229,2]
[311437966,1705105838215,-9208.50091281,0.000229,2]
[311437967,1705105838224,-500.0,0.000229,2]
[311437968,1705105838233,-245000.0,0.000229,2]
[311437969,1705105838243,-250.0,0.000229,2]
[311437970,1705105838253,-8861.5797,0.000229,2]
[311437971,1705105838263,-823.601425,0.000229,2]
[311437972,1705105838272,-349.2297,0.000229,2]
[311437973,1705105838282,-46463.00019923,0.000229,2]
[311437974,1705105838291,-2486.97229079,0.000229,2]
[311437975,1705105838300,-157.29983902,0.000229,2]
[311437976,1705105838310,-298.34424204,0.000229,2]
[311437977,1705105838319,-4516.15692555,0.00022997,2]
[311437978,1705105838329,-184.88263127,0.00022997,2]
[311437979,1705105838537,-429.429511,0.00022997,2]
[311437980,1705105838547,-59431.79315557,0.00022998,2]
[311437981,1705105838556,-1345.58305525,0.00022998,2]
[311437982,1705105838566,-2396.35554476,0.00022998,2]
[311437983,1705105838574,-2140.8217135,0.00022998,2]
[311437984,1705105838584,-2426.77242867,0.00022998,2]
[311437985,1705105838593,-207.56937403,0.00022998,2]
[311437986,1705105838602,-155.0,0.00022998,2]
[311437987,1705105838611,-250.64386178,0.00022998,2]
[311437988,1705105838620,-408.11133974,0.00022998,2]
[311437989,1705105838630,-500.40990855,0.00022999,2]
[311437990,1705105838639,-478.67069907,0.00022999,2]
[311437991,1705105838648,-314.38574848,0.00022999,2]
[311437992,1705105838657,-150.0,0.00022999,2]
[311437993,1705105838666,-150.0,0.00022999,2]
[311437994,1705105838675,-150.0,0.00022999,2]
[311437995,1705105838684,-150.0,0.00022999,2]
[311437996,1705105838694,-150.0,0.00022999,2]
[311437997,1705105838702,-150.0,0.00022999,2]
[311437998,1705105838714,-499.99,0.00023,2]
[311437999,1705105838723,-1409968.46417983,0.00023,2]
[311438000,1705105838732,-12260746.83410235,0.00023,2]
[311438001,1705105838744,-144862.37451848,0.00023,2]
[311438002,1705105838753,-433.47911193,0.00023,2]
[311438003,1705105838763,-397168.86751678,0.00023,2]
[311438004,1705105838773,-6640.27,0.00023,2]
[311438005,1705105838782,-163.37,0.00023,2]
[311438006,1705105838791,-150.0,0.00023087,2]
[311438007,1705105838800,-1454.63646772,0.00023113,2]
[311438008,1705105838809,-151.85,0.00023148,2]
[311438009,1705105838818,-1075.02598251,0.00023214,2]
[311438010,1705105838827,-500.0,0.00023288,4]
[311438011,1705105838836,-500.0,0.00023288,4]
[311438012,1705105838846,-476.19058571,0.00023288,4]
[311438013,1705105838855,-500.0,0.00023288,4]
[311438014,1705105838864,-500.0,0.00023288,4]
[311438015,1705105838873,-401.4115661,0.00023288,4]
[311438016,1705105838886,-500.0,0.00023288,4]
[311438017,1705105838895,-500.0,0.00023288,4]
[311438018,1705105838904,-646.18690612,0.00023288,4]
[311438020,1705105838914,-500.0,0.00023288,4]
[311438022,1705105838924,-500.0,0.00023288,4]
[311438024,1705105838932,-500.0,0.00023288,4]
[311438025,1705105838941,-500.0,0.00023288,4]
[311438027,1705105838950,-500.0,0.00023288,4]
[311438029,1705105838964,-199.78406709,0.00023288,4]
[311438032,1705105838974,-500.0,0.00023288,4]
[311438034,1705105838983,-500.0,0.00023288,4]
[311438035,1705105838993,-224.13968322,0.00023288,4]
[311438037,1705105839002,-500.0,0.00023288,4]
[311438039,1705105839011,-500.0,0.00023288,4]
[311438041,1705105839020,-500.0,0.00023288,4]
[311438043,1705105839030,-500.0,0.00023288,4]
[311438046,1705105839039,-500.0,0.00023288,4]
[311438048,1705105839050,-200.90716875,0.00023288,2]
[311438049,1705105839059,-500.0,0.00023288,2]
[311438052,1705105839069,-166.78488914,0.00023288,2]
[311438054,1705105839079,-500.0,0.00023288,2]
[311438055,1705105839088,-500.0,0.00023288,2]
[311438058,1705105839100,-500.0,0.00023288,2]
[311438060,1705105839109,-500.0,0.00023288,2]
[311438062,1705105839118,-296.3644224,0.00023288,2]
[311438064,1705105839128,-500.0,0.00023288,2]
[311438066,1705105839137,-500.0,0.00023288,2]
[311438067,1705105839146,-500.0,0.00023288,2]
[311438070,1705105839155,-500.0,0.00023288,2]
[311438071,1705105839164,-500.0,0.00023288,2]
[311438074,1705105839174,-500.0,0.00023288,2]
[311438075,1705105839183,-500.0,0.00023288,2]
[311438077,1705105839192,-500.0,0.00023288,2]
[311438080,1705105839202,-500.0,0.00023288,2]
[311438081,1705105839212,-500.0,0.00023288,2]
[311438083,1705105839221,-500.0,0.00023288,2]
[311438085,1705105839230,-498.2261188,0.00023288,2]
[311438087,1705105839239,-500.0,0.00023288,2]
[311438089,1705105839247,-500.0,0.00023288,2]
[311438091,1705105839256,-199.09110559,0.00023288,2]
[311438093,1705105839266,-500.0,0.00023288,2]
[311438095,1705105839275,-200.0,0.00023288,2]
[311438097,1705105839284,-500.0,0.00023288,2]
[311438099,1705105839293,-939.95,0.000233,2]
[311438101,1705105839302,-300.0,0.00023356,2]
[311438103,1705105839311,-150.0,0.000234,2]
[311438105,1705105839320,-300.09,0.00023437,2]
[311438107,1705105839329,-151.85,0.00023451,2]
[311438109,1705105839338,-206.0,0.00023505,2]
[311438111,1705105839347,-151.85,0.00023754,2]
[311438113,1705105839356,-300.0,0.00023804,2]
[311438115,1705105839366,-430.99724455,0.00024,2]
[311438117,1705105839375,-151.85,0.00024057,2]
[311438119,1705105839384,-155.37292417,0.000241,2]
[311438121,1705105839393,-3629.0,0.000241,2]
[311438123,1705105839404,-39905.0,0.000241,2]
[311438126,1705105839414,-152.0,0.00024339,3]
[311438127,1705105839423,-151.85,0.0002436,2]
[311438129,1705105839432,-151.85,0.00024663,2]
[311438132,1705105839444,-330.0,0.00024858,2]
[311438134,1705105839478,-152.0,0.00024947,4]
[311438136,1705105839488,-151.85,0.00024966,2]
[311438138,1705105839498,-303.07385153,0.00025,2]
[311438139,1705105839511,-201.78427875,0.00025,2]
[311438142,1705105839521,-8038.54135472,0.00025,2]
[311438144,1705105839532,-802.72193781,0.00025,7]
[311438146,1705105839541,-350.0,0.00025,3]
[311438148,1705105839554,-153.83971389,0.0002509,2]
[311438150,1705105839564,-1320.37336621,0.000251,2]
[311438151,1705105839574,-1698.0,0.00025233,2]
[311438154,1705105839585,-151.85,0.00025268,2]
[311438156,1705105839595,-250.0,0.00025378,2]
[311438157,1705105839605,-250.0,0.00025397,2]
[311438159,1705105839615,-798.4,0.00025519,2]
[311438162,1705105839624,-152.0,0.00025556,5]
[311438164,1705105839635,-151.85,0.00025571,2]
[311438166,1705105839644,-300.09,0.00025701,2]
[311438168,1705105839654,-151.85,0.00025874,2]
[311438169,1705105839665,-150.0,0.00026079,2]
[311438172,1705105839675,-152.0,0.00026165,6]
[311438174,1705105839685,-228.42113691,0.00026165,5]
[311438176,1705105839696,-151.85,0.00026177,2]
[311438178,1705105839707,-151.85,0.0002648,2]
[311438179,1705105839719,-310.69,0.0002667,2]
[311438182,1705105839729,-5100.45,0.00026693,2]
[311438183,1705105839739,-201.6,0.00026767,2]
[311438186,1705105839749,-151.85,0.00026783,2]
[311438187,1705105839758,-4231.29,0.00026875,2]
[311438189,1705105839768,-400.0,0.00027,3]
[311438191,1705105839777,-206.0,0.00027155,7]
[311438194,1705105839786,-160.05,0.00027338,2]
[311438195,1705105839796,-161.22144985,0.00027397,2]
[311438197,1705105839805,-7999.99,0.00027397,6]
[311438200,1705105839815,-250.0,0.00027397,2]
[311438201,1705105839824,-250.0,0.000274,2]
[311438203,1705105839834,-159.34,0.000274,2]
[311438206,1705105839844,-159.34,0.000274,2]
[311438207,1705105839853,-159.34,0.000274,2]
[311438210,1705105839863,-159.34,0.000274,2]
[311438211,1705105839872,-159.34,0.000274,2]
[311438213,1705105839881,-159.34,0.000274,2]
[311438216,1705105839894,-159.34,0.000274,2]
[311438217,1705105839904,-159.34,0.000274,2]
[311438219,1705105839914,-159.34,0.000274,2]
[311438222,1705105839924,-159.34,0.000274,2]
[311438224,1705105839934,-310.69,0.00027649,2]
[311438225,1705105839944,-156.56,0.00027868,2]
[311438228,1705105839954,-357.99084569,0.00027874,2]
[311438230,1705105839965,-300.09,0.00027965,2]
[311438232,1705105839975,-684.43404366,0.00028,2]
[311438234,1705105839984,-203.59459006,0.00028,2]
[311438235,1705105839993,-160.05,0.00028195,2]
[311438237,1705105840002,-407.77,0.00028356,2]
[311438239,1705105840011,-238.33,0.00028356,2]
[311438241,1705105840020,-152.6,0.00028356,2]
[311438243,1705105840030,-309.28,0.00028356,2]
[311438246,1705105840040,-150.0,0.00028356,2]
[311438247,1705105840050,-587.44,0.00028356,2]
[311438250,1705105840060,-150.0,0.00028356,2]
[311438252,1705105840070,-388.74,0.00028356,2]
[311438254,1705105840079,-150.0,0.00028356,2]
[311438256,1705105840088,-150.0,0.00028356,2]
[311438258,1705105840097,-310.69,0.00028627,2]
[311438259,1705105840106,-161.64,0.00028708,2]
[311438261,1705105840115,-798.4,0.00028709,2]
[311438263,1705105840124,-450.0,0.00029,3]
[311438265,1705105840134,-160.05,0.00029053,2]
[311438267,1705105840144,-2270.0,0.00029076,2]
[311438269,1705105840153,-834.0,0.00029076,2]
[311438271,1705105840162,-190.518,0.00029076,2]
[311438273,1705105840171,-700.0,0.00029076,2]
[311438275,1705105840180,-1251.0,0.00029076,2]
[311438277,1705105840190,-1234.0,0.00029076,2]
[311438279,1705105840199,-199.842,0.00029102,2]
[311438281,1705105840208,-173.187,0.00029122,2]
[311438283,1705105840219,-235.0,0.00029122,2]
[311438285,1705105840228,-505.0,0.00029122,2]
[311438287,1705105840238,-318.0,0.00029122,2]
[311438289,1705105840247,-880.0,0.00029122,2]
[311438291,1705105840257,-3010.614,0.00029122,2]
[311438293,1705105840266,-942.129,0.00029122,2]
[311438295,1705105840275,-2985.392,0.00029122,2]
[311438297,1705105840284,-19678.0,0.00029122,2]
[311438299,1705105840293,-2908.381,0.00029122,2]
[311438301,1705105840303,-3637.532,0.00029122,2]
[311438303,1705105840311,-5949.055,0.00029122,2]
[311438305,1705105840321,-1350.856,0.00029122,2]
[311438308,1705105840331,-449.0,0.00029122,2]
[311438309,1705105840340,-219.679,0.00029122,2]
[311438311,1705105840350,-19105.65798421,0.000295,2]
[311438313,1705105840359,-310.69,0.00029606,2]
[311438314,1705105840368,-800.0,0.00029611,5]
[311438315,1705105840377,-200.0,0.00029661,3]
[311438316,1705105840387,-800.0,0.00029661,5]
[311438317,1705105840396,-200.0,0.00029661,3]
[311438318,1705105840405,-150.0,0.00029685,2]
[311438319,1705105840414,-150.0,0.00029703,2]
[311438320,1705105840423,-150.0,0.00029705,2]
[311438321,1705105840433,-800.0,0.0002971,5]
[311438322,1705105840443,-150.0,0.0002971,2]
[311438324,1705105840453,-150.0,0.00029715,2]
[311438326,1705105840462,-150.0,0.0002972,2]
[311438328,1705105840471,-150.0,0.00029731,2]
[311438330,1705105840480,-150.0,0.0002974,2]
[311438332,1705105840489,-150.0,0.00029748,2]
[311438334,1705105840499,-1500.0,0.00029749,2]
[311438337,1705105840508,-150.0,0.0002975,2]
[311438339,1705105840517,-150.0,0.0002975,2]
[311438341,1705105840526,-150.0,0.00029754,2]
[311438343,1705105840535,-150.0,0.00029755,2]
[311438345,1705105840544,-150.0,0.00029757,2]
[311438347,1705105840554,-200.0,0.00029759,3]
[311438349,1705105840562,-800.0,0.00029759,5]
[311438351,1705105840571,-150.0,0.00029767,2]
[311438353,1705105840584,-150.0,0.0002977,2]
[311438355,1705105840593,-150.0,0.00029776,2]
[311438357,1705105840602,-150.0,0.00029777,2]
[311438358,1705105840611,-38918.7394997,0.0002978,2]
[311438361,1705105840620,-150.0,0.00029786,2]
[311438363,1705105840630,-150.0,0.0002979,2]
[311438365,1705105840639,-150.0,0.00029797,2]
[311438367,1705105840648,-2108.39420325,0.00029797,2]
[311438369,1705105840658,-150.0,0.00029799,2]
[311438371,1705105840667,-39877.51737038,0.000298,2]
[311438373,1705105840681,-263477.85005223,0.000298,2]
[311438376,1705105840696,-12496.5938476,0.000298,2]
[311438378,1705105840707,-1478.00002489,0.000298,2]
[311438380,1705105840719,-2861.16401675,0.000298,2]
[311438381,1705105840765,-70061.666033,0.000298,2]
[311438382,1705105840937,-11925.09242638,0.000298,2]
[311438384,1705105841964,-4526.61418719,0.000298,2]
[311438386,1705105843119,-541.65857843,0.00022898,2]
[311438388,1705105843128,-1931.0,0.00029076,2]
[311438390,1705105843137,-425.0,0.00029374,2]
[311438392,1705105843147,-602.21976116,0.000294,2]
[311438394,1705105843156,-1288.72647127,0.000298,2]
[311438401,1705105843284,-266987.85994964,0.000298,2]
[311438402,1705105843294,-175.2741689,0.000298,2]
[311438403,1705105843303,-150.0,0.00029804,2]
[311438404,1705105843312,-150.0,0.00029812,2]
[311438405,1705105843321,-1500.0,0.0002983,2]
[311438406,1705105843331,-150.0,0.00029833,2]
[311438407,1705105843340,-150.0,0.00029836,2]
[311438408,1705105843349,-1000.0,0.0002985,2]
[311438409,1705105843358,-526.0924,0.0002985,2]
[311438410,1705105843367,-500.0,0.0002985,2]
[311438411,1705105843376,-500.0,0.0002985,2]
[311438412,1705105843385,-500.0,0.0002985,2]
[311438413,1705105843394,-500.0,0.0002985,2]
[311438414,1705105843403,-500.0,0.0002985,2]
[311438415,1705105843412,-500.0,0.0002985,2]
[311438416,1705105843421,-500.0,0.0002985,2]
[311438417,1705105843430,-500.0,0.0002985,2]
[311438418,1705105843439,-500.0,0.0002985,2]
[311438419,1705105843449,-500.0,0.0002985,2]
[311438420,1705105843458,-500.0,0.0002985,2]
[311438421,1705105843468,-500.0,0.0002985,2]
[311438422,1705105843477,-500.0,0.0002985,2]
[311438423,1705105843486,-500.0,0.0002985,2]
[311438424,1705105843496,-500.0,0.0002985,2]
[311438425,1705105843505,-500.0,0.0002985,2]
[311438426,1705105843514,-500.0,0.0002985,2]
[311438427,1705105843523,-615.6338,0.0002985,2]
[311438428,1705105843534,-150.0,0.00029853,2]
[311438429,1705105843543,-1500.0,0.00029855,2]
[311438430,1705105843553,-150.0,0.00029855,2]
[311438431,1705105843562,-150.0,0.00029857,2]
[311438432,1705105843572,-150.0,0.00029862,2]
[311438433,1705105843582,-1500.0,0.00029865,2]
[311438434,1705105843592,-300.0,0.00029877,2]
[311438435,1705105843602,-150.0,0.00029891,2]
[311438436,1705105843612,-150.0,0.00029892,2]
[311438437,1705105843790,-150.0,0.00029893,2]
[311438438,1705105843800,-150.0,0.00029899,2]
[311438439,1705105843809,-150.0,0.00029904,2]
[311438440,1705105843819,-160.05,0.0002991,2]
[311438441,1705105843828,-150.0,0.00029927,2]
[311438442,1705105843837,-150.0,0.00029928,2]
[311438443,1705105843846,-150.0,0.00029935,2]
[311438444,1705105843855,-150.0,0.00029942,2]
[311438445,1705105843865,-300.0,0.00029942,2]
[311438446,1705105843874,-150.0,0.00029948,2]
[311438447,1705105843887,-150.0,0.00029949,2]
[311438448,1705105843896,-150.0,0.00029953,2]
[311438449,1705105843905,-150.0,0.0002996,2]
[311438450,1705105843915,-150.0,0.00029962,2]
[311438451,1705105843924,-150.0,0.00029962,2]
[311438452,1705105843933,-1500.0,0.00029966,2]
[311438453,1705105843942,-150.0,0.00029966,2]
[311438454,1705105843951,-1500.0,0.00029988,2]
[311438455,1705105843961,-19405.37394682,0.00029994,2]
[311438456,1705105843981,-9321.5086878,0.00029994,2]
[311438457,1705105843992,-305.0,0.00029994,2]
[311438458,1705105846342,-394.82081586,0.000229,2]
[311438459,1705105846357,-295.17918414,0.00026073,2]
[311438464,1705105847647,-323.21192347,0.00026073,2]
[311438465,1705105923597,5800.0,0.00018695,2]
[311438466,1705105969155,82350.89047688,0.000225,2]
[311438467,1705106045061,440.8347,0.000228,14]
[311438468,1705106133985,207.0,0.00022505,2]
[311438517,1705106910389,5800.0,0.00018695,2]
[311438522,1705106933130,5800.0,0.00018686,2]
[311438603,1705106956043,5800.0,0.00018678,2]
[311438716,1705106978250,5800.0,0.00018669,2]
[311438717,1705107000974,5800.0,0.00018661,2]
[311438719,1705107023708,5800.0,0.00018652,2]
[311438720,1705107032302,-269.68179986,0.00022899,2]
[311438721,1705107032312,-250.0,0.000229,2]
[311438722,1705107032322,-150.0,0.00023,2]
[311438723,1705107032332,-207.0,0.00024671,2]
[311438724,1705107032341,-78.67594218,0.00025,2]
[311438725,1705107032357,-224.39790935,0.00025,2]
[311438726,1705107032368,-201.78427875,0.00025,2]
[311438727,1705107032378,-5.52966093,0.00026072,2]
[311438728,1705107032445,-421.96343853,0.00026072,2]
[311438729,1705107032456,-200.0,0.00026073,2]
[311438730,1705107032467,-508.18002427,0.00026073,2]
[311438731,1705107032476,-240.07,0.00026652,2]
[311438732,1705107032486,-250.0,0.000274,2]
[311438733,1705107032497,-250.0,0.00028539,2]
[311438734,1705107032509,-679.7865372,0.00028539,2]
[311438735,1705107032524,-448.6534628,0.00028539,2]
[311438736,1705107032539,-16.3328311,0.00028539,2]
[311438737,1705107032569,-299.42368159,0.00028539,2]
[311438738,1705107032594,-300.0,0.00028539,2]
[311438739,1705107032610,-1785.47348731,0.00028539,2]
[311438740,1705107032620,-520.96,0.00028547,2]
[311438741,1705107032630,-499.99,0.00028547,2]
[311438742,1705107032640,-2861.05,0.00028548,2]
[311438743,1705107032649,-3646.5,0.00028558,2]
[311438744,1705107032659,-2000.0,0.00028564,2]
[311438745,1705107032669,-250.0,0.0002858,2]
[311438748,1705107032679,-250.0,0.000286,2]
[311438751,1705107032688,-150.0,0.00028623,2]
[311438753,1705107032698,-2118.56405589,0.00028646,2]
[311438755,1705107032708,-4250.37,0.00028648,2]
[311438758,1705107032717,-259.82,0.00028649,2]
[311438761,1705107032727,-9079.69015686,0.00028655,2]
[311438764,1705107032737,-479.04,0.00028657,2]
[311438767,1705107032746,-5751.31,0.00028686,2]
[311438770,1705107032758,-160.05,0.00028842,2]
[311438773,1705107032768,-240.07,0.00028916,2]
[311438776,1705107032778,-207.0,0.00029087,9]
[311438779,1705107032787,-500.0,0.000293,2]
[311438782,1705107032797,-646.71059387,0.00029498,6]
[311438785,1705107032806,-2837.77153893,0.00029498,2]
[311438787,1705107032815,-4625.59440296,0.000295,2]
[311438790,1705107032828,-3467.61613078,0.000295,2]
[311438910,1705107038487,-11012.44745047,0.000295,2]
[311438911,1705107038498,-168.21,0.0002955,2]
[311438912,1705107038508,-259.82,0.00029627,2]
[311438913,1705107038517,-202.079125,0.00029692,3]
[311438914,1705107038526,-1500.0,0.00029726,2]
[311438915,1705107038537,-800.0,0.00029754,5]
[311438916,1705107038546,-200.0,0.00029757,3]
[311438917,1705107038555,-800.0,0.00029757,5]
[311438918,1705107038564,-200.0,0.00029759,3]
[311438919,1705107038573,-800.0,0.00029759,5]
[311438920,1705107038582,-300.0,0.00029759,2]
[311438921,1705107038592,-500.0,0.0002976,2]
[311438922,1705107038601,-1500.0,0.0002976,2]
[311438923,1705107038610,-300.0,0.00029765,2]
[311438924,1705107038620,-150.0,0.00029766,2]
[311438925,1705107038629,-150.0,0.00029798,2]
[311438926,1705107038638,-500.0,0.0002982,2]
[311438927,1705107038648,-248.371,0.00029821,2]
[311438928,1705107038656,-425.0,0.00029821,2]
[311438929,1705107038666,-769.135,0.00029821,2]
[311438930,1705107038676,-275.932,0.00029821,2]
[311438931,1705107038685,-12564.16664015,0.00029821,2]
[311438934,1705107038732,-7113.83335985,0.00029821,2]
[311438936,1705107038741,-2263.0,0.00029821,2]
[311438938,1705107038750,-2901.0,0.00029821,2]
[311438940,1705107038760,-150.0,0.00029821,2]
[311438942,1705107038771,-156.0,0.00029821,2]
[311438944,1705107038779,-197.0,0.00029821,2]